fUSD/lending_fUSD_20250622
["ID","MTS","AMOUNT","RATE_DAILY","PERIOD"]
[366920321,1750572644246,-490.0,0.00019178,2]
[366920322,1750572644256,-490.0,0.00019178,2]
[366920323,1750572644265,-497.09458864,0.00019178,2]
[366920324,1750572644275,-490.0,0.00019178,2]
[366920325,1750572644285,-784.58,0.00019178,2]
[366920326,1750572644294,-1701.65,0.00019178,2]
[366920327,1750572644304,-490.0,0.00019178,2]
[366920328,1750572644315,-490.0,0.00019178,2]
[366920329,1750572644324,-490.0,0.00019178,2]
[366920330,1750572644334,-490.0,0.00019178,2]
[366920331,1750572644344,-490.0,0.00019178,2]
[366920332,1750572644353,-718.7,0.00019178,2]
[366920333,1750572644364,-490.0,0.00019178,2]
[366920334,1750572644374,-490.0,0.00019178,2]
[366920335,1750572644384,-551.88176151,0.00019178,2]
[366920336,1750572644394,-490.0,0.00019178,2]
[366920337,1750572644404,-490.0,0.00019178,2]
[366920338,1750572644414,-490.0,0.00019178,2]
[366920339,1750572644424,-490.0,0.00019178,2]
[366920340,1750572644435,-1790.64,0.00019178,2]
[366920341,1750572644446,-606.37,0.00019178,2]
[366920342,1750572644456,-490.0,0.00019178,2]
[366920343,1750572644465,-490.0,0.00019178,2]
[366920344,1750572644475,-490.0,0.00019178,2]
[366920345,1750572644484,-790.85,0.00019178,2]
[366920346,1750572644494,-882.85,0.00019178,2]
[366920347,1750572644503,-1199.98,0.00019178,2]
[366920348,1750572644515,-493.45842617,0.00019178,2]
[366920349,1750572644526,-490.0,0.00019178,2]
[366920350,1750572644535,-490.0,0.00019178,2]
[366920351,1750572644544,-490.0,0.00019178,2]
[366920352,1750572644555,-1809.17,0.00019178,2]
[366920353,1750572644565,-490.0,0.00019178,2]
[366920354,1750572644575,-1684.85,0.00019178,2]
[366920355,1750572644586,-490.0,0.00019178,2]
[366920356,1750572644596,-490.0,0.00019178,2]
[366920357,1750572644606,-490.0,0.00019178,2]
[366920358,1750572644615,-490.0,0.00019178,2]
[366920359,1750572644625,-490.0,0.00019178,2]
[366920360,1750572644635,-490.0,0.00019178,2]
[366920361,1750572644645,-490.0,0.00019178,2]
[366920362,1750572644655,-490.0,0.00019178,2]
[366920363,1750572644665,-490.0,0.00019178,2]
[366920364,1750572644675,-490.0,0.00019178,2]
[366920365,1750572644685,-490.0,0.00019178,2]
[366920366,1750572644695,-490.0,0.00019178,2]
[366920367,1750572644703,-490.0,0.00019178,2]
[366920368,1750572644713,-490.0,0.00019178,2]
[366920369,1750572644722,-1322.54,0.00019178,2]
[366920370,1750572644731,-490.0,0.00019178,2]
[366920371,1750572644741,-590.52,0.00019178,2]
[366920372,1750572644751,-1023.6,0.00019178,2]
[366920373,1750572644761,-1166.01,0.00019178,2]
[366920374,1750572644771,-490.0,0.00019178,2]
[366920375,1750572644781,-490.0,0.00019178,2]
[366920376,1750572644791,-1048.69,0.00019178,2]
[366920377,1750572644801,-272.5293211,0.00019178,2]
[366920378,1750572644811,-2245.89,0.00019178,2]
[366920379,1750572644822,-490.0,0.00019178,2]
[366920380,1750572644833,-490.0,0.00019178,2]
[366920381,1750572644842,-500.0,0.00019178,2]
[366920382,1750572644852,-490.0,0.00019178,2]
[366920383,1750572644862,-490.0,0.00019178,2]
[366920384,1750572644872,-562.9099749,0.00019178,2]
[366920385,1750572644881,-490.0,0.00019178,2]
[366920386,1750572644900,-490.0,0.00019178,2]
[366920387,1750572644909,-161.52783451,0.00019178,2]
[366920388,1750572644918,-490.0,0.00019178,2]
[366920389,1750572644928,-490.0,0.00019178,2]
[366920390,1750572644937,-436.62323854,0.00019178,2]
[366920391,1750572644947,-490.0,0.00019178,2]
[366920392,1750572644957,-2117.74,0.00019178,2]
[366920393,1750572644966,-490.0,0.00019178,2]
[366920394,1750572644976,-490.0,0.00019178,2]
[366920395,1750572644986,-490.0,0.00019178,2]
[366920396,1750572644996,-562.41,0.00019178,2]
[366920397,1750572645006,-365.75494317,0.00019178,2]
[366920398,1750572645015,-490.0,0.00019178,2]
[366920399,1750572645025,-490.0,0.00019178,2]
[366920400,1750572645036,-490.0,0.00019178,2]
[366920401,1750572645046,-546.41,0.00019178,2]
[366920402,1750572645056,-490.0,0.00019178,2]
[366920403,1750572645065,-401.54549818,0.00019178,2]
[366920404,1750572645075,-490.0,0.00019178,2]
[366920405,1750572645084,-490.0,0.00019178,2]
[366920406,1750572645093,-999.69,0.00019178,2]
[366920407,1750572645103,-2501.52,0.00019178,2]
[366920408,1750572645113,-871.59,0.00019178,2]
[366920409,1750572645123,-490.0,0.00019178,2]
[366920410,1750572645132,-492.59300209,0.00019178,2]
[366920411,1750572645142,-1743.14,0.00019178,2]
[366920412,1750572645152,-529.92,0.00019178,2]
[366920413,1750572645162,-570.18,0.00019178,2]
[366920414,1750572645171,-490.0,0.00019178,2]
[366920415,1750572645181,-490.0,0.00019178,2]
[366920416,1750572645191,-490.0,0.00019178,2]
[366920417,1750572645201,-490.0,0.00019178,2]
[366920418,1750572645212,-490.0,0.00019178,2]
[366920419,1750572645222,-490.0,0.00019178,2]
[366920420,1750572645231,-530.56740585,0.00019178,2]
[366920421,1750572645241,-490.0,0.00019178,2]
[366920422,1750572645251,-490.0,0.00019178,2]
[366920423,1750572645260,-913.52,0.00019178,2]
[366920424,1750572645271,-490.0,0.00019178,2]
[366920425,1750572645280,-490.0,0.00019178,2]
[366920426,1750572645291,-568.46,0.00019178,2]
[366920427,1750572645300,-1425.69,0.00019178,2]
[366920428,1750572645310,-490.0,0.00019178,2]
[366920429,1750572645320,-506.35,0.00019178,2]
[366920430,1750572645330,-818.27,0.00019178,2]
[366920431,1750572645340,-490.0,0.00019178,2]
[366920432,1750572645350,-804.0,0.00019178,2]
[366920433,1750572645361,-880.03,0.00019178,2]
[366920434,1750572645371,-674.21,0.00019178,2]
[366920435,1750572645381,-490.0,0.00019178,2]
[366920436,1750572645391,-490.0,0.00019178,2]
[366920437,1750572645401,-2406.8,0.00019178,2]
[366920438,1750572645411,-490.0,0.00019178,2]
[366920439,1750572645421,-823.24,0.00019178,2]
[366920440,1750572645431,-1182.67,0.00019178,2]
[366920441,1750572645441,-1514.24,0.00019178,2]
[366920442,1750572645451,-490.0,0.00019178,2]
[366920443,1750572645461,-490.0,0.00019178,2]
[366920444,1750572645470,-490.0,0.00019178,2]
[366920445,1750572645480,-600.85,0.00019178,2]
[366920446,1750572645490,-490.0,0.00019178,2]
[366920447,1750572645500,-490.0,0.00019178,2]
[366920448,1750572645510,-990.42,0.00019178,2]
[366920449,1750572645523,-1482.31,0.00019178,2]
[366920450,1750572645533,-490.0,0.00019178,2]
[366920451,1750572645543,-1950.71,0.00019178,2]
[366920452,1750572645552,-490.0,0.00019178,2]
[366920453,1750572645563,-490.0,0.00019178,2]
[366920454,1750572645573,-490.0,0.00019178,2]
[366920455,1750572645583,-566.32,0.00019178,2]
[366920456,1750572645593,-2320.59,0.00019178,2]
[366920457,1750572645603,-490.0,0.00019178,2]
[366920458,1750572645613,-490.0,0.00019178,2]
[366920459,1750572645622,-1576.85,0.00019178,2]
[366920460,1750572645632,-1106.81,0.00019178,2]
[366920461,1750572645642,-490.0,0.00019178,2]
[366920462,1750572645652,-490.0,0.00019178,2]
[366920463,1750572645661,-490.0,0.00019178,2]
[366920464,1750572645671,-493.42118002,0.00019178,2]
[366920465,1750572645680,-1204.96,0.00019178,2]
[366920466,1750572645690,-490.0,0.00019178,2]
[366920467,1750572645699,-490.0,0.00019178,2]
[366920468,1750572645708,-2625.13,0.00019178,2]
[366920469,1750572645717,-490.0,0.00019178,2]
[366920470,1750572645726,-1045.06,0.00019178,2]
[366920471,1750572645736,-501.14926523,0.00019178,2]
[366920472,1750572645745,-763.05,0.00019178,2]
[366920473,1750572645754,-490.0,0.00019178,2]
[366920474,1750572645764,-1466.21,0.00019178,2]
[366920475,1750572645773,-906.73,0.00019178,2]
[366920476,1750572645782,-490.0,0.00019178,2]
[366920477,1750572645791,-423.01285615,0.00019178,2]
[366920478,1750572645802,-490.0,0.00019178,2]
[366920479,1750572645812,-490.0,0.00019178,2]
[366920480,1750572645822,-490.0,0.00019178,2]
[366920481,1750572645832,-1674.07,0.00019178,2]
[366920482,1750572645842,-490.0,0.00019178,2]
[366920483,1750572645851,-404.3039019,0.00019178,2]
[366920484,1750572645861,-490.0,0.00019178,2]
[366920485,1750572645871,-490.0,0.00019178,2]
[366920486,1750572645880,-725.53,0.00019178,2]
[366920488,1750572645890,-490.0,0.00019178,2]
[366920489,1750572645899,-490.0,0.00019178,2]
[366920490,1750572645908,-1272.39,0.00019178,2]
[366920491,1750572645918,-490.0,0.00019178,2]
[366920492,1750572645928,-490.0,0.00019178,2]
[366920493,1750572645938,-1185.8,0.00019178,2]
[366920494,1750572645947,-490.0,0.00019178,2]
[366920495,1750572645957,-422.79909339,0.00019178,2]
[366920496,1750572645967,-490.0,0.00019178,2]
[366920497,1750572645978,-1903.41,0.00019178,2]
[366920498,1750572645988,-1837.78,0.00019178,2]
[366920499,1750572646000,-490.0,0.00019178,2]
[366920500,1750572646010,-577.17,0.00019178,2]
[366920501,1750572646019,-490.0,0.00019178,2]
[366920502,1750572646030,-490.0,0.00019178,2]
[366920503,1750572646039,-789.04,0.00019178,2]
[366920504,1750572646050,-2120.32,0.00019178,2]
[366920505,1750572646060,-212.4372612,0.00019178,2]
[366920506,1750572646069,-490.0,0.00019178,2]
[366920507,1750572646079,-2633.7,0.00019178,2]
[366920508,1750572646089,-490.0,0.00019178,2]
[366920509,1750572646099,-490.0,0.00019178,2]
[366920510,1750572646108,-490.0,0.00019178,2]
[366920511,1750572646118,-490.0,0.00019178,2]
[366920512,1750572646128,-490.0,0.00019178,2]
[366920513,1750572646138,-491.54589861,0.00019178,2]
[366920514,1750572646148,-406.37750827,0.00019178,2]
[366920515,1750572646158,-490.0,0.00019178,2]
[366920516,1750572646168,-490.0,0.00019178,2]
[366920517,1750572646177,-490.0,0.00019178,2]
[366920518,1750572646187,-490.0,0.00019178,2]
[366920519,1750572646197,-756.0,0.00019178,2]
[366920520,1750572646207,-567.96,0.00019178,2]
[366920521,1750572646216,-1631.03,0.00019178,2]
[366920522,1750572646226,-490.0,0.00019178,2]
[366920523,1750572646236,-490.0,0.00019178,2]
[366920524,1750572646246,-490.0,0.00019178,2]
[366920525,1750572646256,-490.0,0.00019178,2]
[366920526,1750572646267,-616.13,0.00019178,2]
[366920527,1750572646277,-490.0,0.00019178,2]
[366920528,1750572646287,-490.0,0.00019178,2]
[366920529,1750572646297,-490.0,0.00019178,2]
[366920530,1750572646307,-490.0,0.00019178,2]
[366920531,1750572646317,-1801.93,0.00019178,2]
[366920532,1750572646327,-2421.61,0.00019178,2]
[366920533,1750572646336,-523.76,0.00019178,2]
[366920534,1750572646346,-492.95198833,0.00019178,2]
[366920535,1750572646357,-1072.65,0.00019178,2]
[366920536,1750572646367,-1017.46,0.00019178,2]
[366920537,1750572646377,-490.0,0.00019178,2]
[366920538,1750572646387,-490.0,0.00019178,2]
[366920540,1750572646397,-2114.79,0.00019178,2]
[366920542,1750572646407,-490.0,0.00019178,2]
[366920544,1750572646416,-506.81,0.00019178,2]
[366920546,1750572646426,-490.0,0.00019178,2]
[366920548,1750572646435,-490.0,0.00019178,2]
[366920550,1750572646445,-490.0,0.00019178,2]
[366920552,1750572646455,-490.0,0.00019178,2]
[366920554,1750572646465,-490.0,0.00019178,2]
[366920556,1750572646475,-1265.38,0.00019178,2]
[366920558,1750572646485,-1616.74,0.00019178,2]
[366920560,1750572646495,-490.0,0.00019178,2]
[366920562,1750572646506,-490.0,0.00019178,2]
[366920564,1750572646519,-490.0,0.00019178,2]
[366920566,1750572646528,-1248.15,0.00019178,2]
[366920568,1750572646538,-1513.63,0.00019178,2]
[366920570,1750572646548,-1579.73,0.00019178,2]
[366920572,1750572646560,-490.0,0.00019178,2]
[366920574,1750572646570,-490.0,0.00019178,2]
[366920575,1750572646581,-490.0,0.00019178,2]
[366920576,1750572646591,-1727.74,0.00019178,2]
[366920577,1750572646601,-490.0,0.00019178,2]
[366920579,1750572646612,-1897.01,0.00019178,2]
[366920581,1750572646622,-526.24,0.00019178,2]
[366920582,1750572646631,-490.0,0.00019178,2]
[366920583,1750572646641,-490.0,0.00019178,2]
[366920584,1750572646652,-1141.1,0.00019178,2]
[366920585,1750572646662,-701.04,0.00019178,2]
[366920586,1750572646671,-490.0,0.00019178,2]
[366920587,1750572646681,-490.0,0.00019178,2]
[366920588,1750572646692,-1620.9,0.00019178,2]
[366920589,1750572646701,-1144.9,0.00019178,2]
[366920590,1750572646712,-490.0,0.00019178,2]
[366920591,1750572646722,-490.0,0.00019178,2]
[366920592,1750572646732,-490.0,0.00019178,2]
[366920593,1750572646742,-490.0,0.00019178,2]
[366920594,1750572646752,-490.0,0.00019178,2]
[366920595,1750572646761,-798.09,0.00019178,2]
[366920596,1750572646771,-490.0,0.00019178,2]
[366920597,1750572646781,-490.0,0.00019178,2]
[366920598,1750572646791,-490.0,0.00019178,2]
[366920599,1750572646801,-1543.42,0.00019178,2]
[366920600,1750572646811,-1723.73,0.00019178,2]
[366920601,1750572646821,-907.07,0.00019178,2]
[366920602,1750572646832,-665.08,0.00019178,2]
[366920603,1750572646842,-490.0,0.00019178,2]
[366920604,1750572646852,-620.08,0.00019178,2]
[366920605,1750572646862,-490.0,0.00019178,2]
[366920606,1750572646872,-620.08,0.00019178,2]
[366920607,1750572646882,-620.08,0.00019178,2]
[366920608,1750572646892,-620.08,0.00019178,2]
[366920609,1750572646902,-620.08,0.00019178,2]
[366920610,1750572646912,-620.08,0.00019178,2]
[366920611,1750572646922,-620.08,0.00019178,2]
[366920612,1750572646933,-620.08,0.00019178,2]
[366920613,1750572646943,-490.0,0.00019178,2]
[366920614,1750572646953,-490.0,0.00019178,2]
[366920615,1750572646963,-2068.62,0.00019178,2]
[366920616,1750572646972,-490.0,0.00019178,2]
[366920617,1750572646982,-490.0,0.00019178,2]
[366920618,1750572646992,-929.65,0.00019178,2]
[366920619,1750572647001,-490.0,0.00019178,2]
[366920620,1750572647011,-494.09980186,0.00019178,2]
[366920621,1750572647021,-1373.79,0.00019178,2]
[366920622,1750572647031,-1635.89,0.00019178,2]
[366920623,1750572647041,-832.81,0.00019178,2]
[366920624,1750572647051,-1244.64,0.00019178,2]
[366920625,1750572647061,-490.0,0.00019178,2]
[366920626,1750572647071,-1935.54,0.00019178,2]
[366920627,1750572647081,-1272.89,0.00019178,2]
[366920628,1750572647092,-500.0,0.00019178,2]
[366920629,1750572647102,-490.0,0.00019178,2]
[366920630,1750572647112,-500.0,0.00019178,2]
[366920631,1750572647122,-500.0,0.00019178,2]
[366920632,1750572647132,-500.0,0.00019178,2]
[366920633,1750572647142,-500.0,0.00019178,2]
[366920634,1750572647152,-1230.93,0.00019178,2]
[366920635,1750572647163,-500.0,0.00019178,2]
[366920636,1750572647173,-500.0,0.00019178,2]
[366920637,1750572647183,-500.0,0.00019178,2]
[366920638,1750572647193,-490.0,0.00019178,2]
[366920639,1750572647204,-492.79014687,0.00019178,2]
[366920640,1750572647215,-1666.63,0.00019178,2]
[366920641,1750572647226,-490.0,0.00019178,2]
[366920642,1750572647237,-1132.48,0.00019178,2]
[366920643,1750572647248,-490.0,0.00019178,2]
[366920644,1750572647257,-2140.4,0.00019178,2]
[366920645,1750572647267,-988.34,0.00019178,2]
[366920646,1750572647278,-490.0,0.00019178,2]
[366920647,1750572647288,-490.0,0.00019178,2]
[366920648,1750572647298,-490.0,0.00019178,2]
[366920649,1750572647308,-1277.44,0.00019178,2]
[366920650,1750572647318,-1353.9,0.00019178,2]
[366920651,1750572647329,-1317.86,0.00019178,2]
[366920652,1750572647339,-490.0,0.00019178,2]
[366920653,1750572647349,-490.0,0.00019178,2]
[366920654,1750572647359,-490.0,0.00019178,2]
[366920655,1750572647370,-500.0,0.00019178,2]
[366920656,1750572647380,-490.0,0.00019178,2]
[366920657,1750572647390,-1072.24,0.00019178,2]
[366920658,1750572647400,-490.0,0.00019178,2]
[366920659,1750572647410,-993.72,0.00019178,2]
[366920660,1750572647421,-490.0,0.00019178,2]
[366920661,1750572647432,-490.0,0.00019178,2]
[366920662,1750572647443,-490.0,0.00019178,2]
[366920663,1750572647453,-490.0,0.00019178,2]
[366920664,1750572647463,-490.0,0.00019178,2]
[366920665,1750572647473,-490.0,0.00019178,2]
[366920666,1750572647483,-1480.85,0.00019178,2]
[366920667,1750572647492,-490.0,0.00019178,2]
[366920668,1750572647502,-490.0,0.00019178,2]
[366920669,1750572647512,-490.0,0.00019178,2]
[366920670,1750572647524,-341.54150293,0.00019178,2]
[366920671,1750572647534,-1175.71,0.00019178,2]
[366920672,1750572647543,-490.0,0.00019178,2]
[366920673,1750572647553,-570.58,0.00019178,2]
[366920674,1750572647564,-570.58,0.00019178,2]
[366920675,1750572647574,-886.9,0.00019178,2]
[366920676,1750572647585,-490.0,0.00019178,2]
[366920677,1750572647595,-490.0,0.00019178,2]
[366920678,1750572647605,-490.0,0.00019178,2]
[366920679,1750572647615,-490.0,0.00019178,2]
[366920680,1750572647625,-490.0,0.00019178,2]
[366920681,1750572647635,-1758.75,0.00019178,2]
[366920682,1750572647645,-490.0,0.00019178,2]
[366920683,1750572647655,-490.0,0.00019178,2]
[366920684,1750572647665,-494.4136507,0.00019178,2]
[366920685,1750572647675,-1329.96,0.00019178,2]
[366920686,1750572647685,-490.0,0.00019178,2]
[366920687,1750572647695,-669.85,0.00019178,2]
[366920688,1750572647705,-1968.04,0.00019178,2]
[366920689,1750572647715,-490.0,0.00019178,2]
[366920690,1750572647725,-490.0,0.00019178,2]
[366920691,1750572647735,-539.72,0.00019178,2]
[366920692,1750572647744,-652.68,0.00019178,2]
[366920693,1750572647754,-490.0,0.00019178,2]
[366920694,1750572647764,-490.0,0.00019178,2]
[366920695,1750572647773,-678.88,0.00019178,2]
[366920696,1750572647783,-1322.0,0.00019178,2]
[366920697,1750572647793,-490.0,0.00019178,2]
[366920698,1750572647802,-364.97271773,0.00019178,2]
[366920699,1750572647813,-490.0,0.00019178,2]
[366920700,1750572647825,-972.04,0.00019178,2]
[366920701,1750572647835,-3710.82,0.00019178,2]
[366920702,1750572647846,-490.0,0.00019178,2]
[366920703,1750572647855,-490.0,0.00019178,2]
[366920704,1750572647865,-490.0,0.00019178,2]
[366920705,1750572647875,-360.21472829,0.00019178,2]
[366920706,1750572647885,-490.0,0.00019178,2]
[366920707,1750572647895,-490.0,0.00019178,2]
[366920708,1750572647905,-1560.58,0.00019178,2]
[366920709,1750572647914,-1260.62,0.00019178,2]
[366920710,1750572647924,-342.50477409,0.00019178,2]
[366920711,1750572647934,-1455.86,0.00019178,2]
[366920712,1750572647943,-490.0,0.00019178,2]
[366920713,1750572647953,-490.0,0.00019178,2]
[366920714,1750572647963,-1740.19,0.00019178,2]
[366920715,1750572647972,-493.64132587,0.00019178,2]
[366920716,1750572647982,-490.0,0.00019178,2]
[366920717,1750572647992,-567.09,0.00019178,2]
[366920718,1750572648002,-495.05354217,0.00019178,2]
[366920719,1750572648012,-1447.34,0.00019178,2]
[366920720,1750572648022,-490.0,0.00019178,2]
[366920721,1750572648033,-490.0,0.00019178,2]
[366920722,1750572648043,-490.0,0.00019178,2]
[366920723,1750572648053,-490.0,0.00019178,2]
[366920724,1750572648063,-490.0,0.00019178,2]
[366920725,1750572648073,-490.0,0.00019178,2]
[366920726,1750572648084,-851.13,0.00019178,2]
[366920727,1750572648094,-490.0,0.00019178,2]
[366920728,1750572648104,-610.4,0.00019178,2]
[366920729,1750572648114,-490.0,0.00019178,2]
[366920730,1750572648124,-490.0,0.00019178,2]
[366920731,1750572648134,-378.08361689,0.00019178,2]
[366920732,1750572648145,-490.0,0.00019178,2]
[366920733,1750572648155,-490.0,0.00019178,2]
[366920734,1750572648165,-490.0,0.00019178,2]
[366920735,1750572648175,-490.0,0.00019178,2]
[366920736,1750572648186,-490.0,0.00019178,2]
[366920737,1750572648196,-490.0,0.00019178,2]
[366920738,1750572648434,-490.0,0.00019178,2]
[366920739,1750572648473,-490.0,0.00019178,2]
[366920740,1750572648484,-2836.7,0.00019178,2]
[366920741,1750572648493,-490.0,0.00019178,2]
[366920742,1750572648503,-490.0,0.00019178,2]
[366920743,1750572648514,-1355.93,0.00019178,2]
[366920744,1750572648526,-2269.6,0.00019178,2]
[366920745,1750572648535,-833.95,0.00019178,2]
[366920746,1750572648545,-490.0,0.00019178,2]
[366920747,1750572648555,-1040.78,0.00019178,2]
[366920748,1750572648566,-490.0,0.00019178,2]
[366920749,1750572648576,-490.0,0.00019178,2]
[366920750,1750572648586,-2502.6,0.00019178,2]
[366920751,1750572648597,-490.0,0.00019178,2]
[366920752,1750572648608,-490.0,0.00019178,2]
[366920753,1750572648618,-490.0,0.00019178,2]
[366920754,1750572648628,-490.0,0.00019178,2]
[366920755,1750572648638,-490.0,0.00019178,2]
[366920756,1750572648647,-527.1,0.00019178,2]
[366920757,1750572648657,-490.0,0.00019178,2]
[366920758,1750572648667,-748.88,0.00019178,2]
[366920759,1750572648677,-1782.06,0.00019178,2]
[366920760,1750572648687,-1063.79,0.00019178,2]
[366920761,1750572648696,-490.0,0.00019178,2]
[366920762,1750572648706,-332.07214602,0.00019178,2]
[366920763,1750572648716,-490.0,0.00019178,2]
[366920764,1750572648726,-490.0,0.00019178,2]
[366920765,1750572648735,-490.0,0.00019178,2]
[366920766,1750572648745,-949.78,0.00019178,2]
[366920767,1750572648754,-800.03,0.00019178,2]
[366920768,1750572648764,-490.0,0.00019178,2]
[366920769,1750572648774,-490.0,0.00019178,2]
[366920770,1750572648784,-490.0,0.00019178,2]
[366920771,1750572648794,-490.0,0.00019178,2]
[366920772,1750572648804,-490.0,0.00019178,2]
[366920773,1750572648813,-490.0,0.00019178,2]
[366920774,1750572648823,-490.0,0.00019178,2]
[366920775,1750572648834,-490.0,0.00019178,2]
[366920776,1750572648844,-490.0,0.00019178,2]
[366920777,1750572648853,-2006.31,0.00019178,2]
[366920778,1750572648863,-490.0,0.00019178,2]
[366920779,1750572648873,-490.0,0.00019178,2]
[366920780,1750572648882,-490.0,0.00019178,2]
[366920781,1750572648892,-2597.97,0.00019178,2]
[366920782,1750572648902,-871.3,0.00019178,2]
[366920783,1750572648912,-490.0,0.00019178,2]
[366920784,1750572648922,-491.60784703,0.00019178,2]
[366920785,1750572648932,-828.56,0.00019178,2]
[366920786,1750572648942,-4023.74,0.00019178,2]
[366920787,1750572648952,-490.0,0.00019178,2]
[366920788,1750572648962,-490.0,0.00019178,2]
[366920789,1750572648971,-490.0,0.00019178,2]
[366920790,1750572648981,-490.0,0.00019178,2]
[366920791,1750572648990,-490.0,0.00019178,2]
[366920792,1750572649001,-490.0,0.00019178,2]
[366920793,1750572649011,-490.0,0.00019178,2]
[366920794,1750572649020,-490.0,0.00019178,2]
[366920795,1750572649030,-490.0,0.00019178,2]
[366920796,1750572649040,-532.38,0.00019178,2]
[366920797,1750572649050,-773.22,0.00019178,2]
[366920798,1750572649059,-490.0,0.00019178,2]
[366920799,1750572649068,-2769.12,0.00019178,2]
[366920800,1750572649078,-490.0,0.00019178,2]
[366920801,1750572649088,-647.73,0.00019178,2]
[366920802,1750572649098,-492.01317139,0.00019178,2]
[366920803,1750572649109,-1972.29,0.00019178,2]
[366920804,1750572649119,-770.18,0.00019178,2]
[366920805,1750572649128,-490.0,0.00019178,2]
[366920806,1750572649138,-490.0,0.00019178,2]
[366920807,1750572649148,-490.0,0.00019178,2]
[366920808,1750572649158,-490.0,0.00019178,2]
[366920809,1750572649168,-490.0,0.00019178,2]
[366920810,1750572649178,-490.0,0.00019178,2]
[366920811,1750572649188,-490.0,0.00019178,2]
[366920812,1750572649198,-490.0,0.00019178,2]
[366920813,1750572649208,-490.0,0.00019178,2]
[366920814,1750572649218,-490.0,0.00019178,2]
[366920815,1750572649227,-490.0,0.00019178,2]
[366920816,1750572649237,-490.0,0.00019178,2]
[366920817,1750572649247,-490.0,0.00019178,2]
[366920818,1750572649257,-2129.57,0.00019178,2]
[366920819,1750572649267,-490.0,0.00019178,2]
[366920820,1750572649277,-490.0,0.00019178,2]
[366920821,1750572649287,-766.67,0.00019178,2]
[366920822,1750572649297,-490.0,0.00019178,2]
[366920823,1750572649307,-843.77,0.00019178,2]
[366920824,1750572649317,-490.0,0.00019178,2]
[366920825,1750572649328,-2221.09,0.00019178,2]
[366920826,1750572649338,-490.0,0.00019178,2]
[366920827,1750572649348,-490.0,0.00019178,2]
[366920828,1750572649358,-490.0,0.00019178,2]
[366920829,1750572649368,-803.29,0.00019178,2]
[366920830,1750572649378,-490.0,0.00019178,2]
[366920831,1750572649388,-490.0,0.00019178,2]
[366920832,1750572649398,-490.0,0.00019178,2]
[366920833,1750572649407,-4015.64,0.00019178,2]
[366920834,1750572649417,-1199.42,0.00019178,2]
[366920835,1750572649427,-490.0,0.00019178,2]
[366920836,1750572649436,-295.78890615,0.00019178,2]
[366920837,1750572649446,-490.0,0.00019178,2]
[366920838,1750572649456,-490.0,0.00019178,2]
[366920839,1750572649466,-669.17,0.00019178,2]
[366920840,1750572649476,-516.11981407,0.00019178,2]
[366920841,1750572649485,-865.69,0.00019178,2]